fUSD/lending_fUSD_20260421
["ID","MTS","AMOUNT","RATE_DAILY","PERIOD"]
[420931623,1776736303293,-339.8803521,0.00027945,2]
[420931624,1776736303308,-653.74439782,0.00027945,2]
[420931625,1776736303320,-923.05525008,0.00027945,2]
[420931626,1776736303328,-454.94405576,0.00027945,2]
[420931627,1776736303344,-445.3297252,0.00027945,2]
[420931639,1776737432365,-303.77869901,9.56e-05,2]
[420931640,1776737432432,-79.32130099,9.56e-05,2]
[420931641,1776737432441,-299.39235816,9.607e-05,2]
[420931642,1776737432482,-292.97700002,9.607e-05,2]
[420931643,1776737432495,-12366.93884182,9.607e-05,2]
[420931644,1776737432504,-300.0,9.607e-05,2]
[420931645,1776737432514,-25123.6612,9.608e-05,2]
[420931646,1776737432524,-16423.6562,9.608e-05,2]
[420931647,1776737432533,-379420.2177,9.608e-05,2]
[420931648,1776737432543,-3670.3254,9.608e-05,2]
[420931649,1776737432552,-1000.0,9.709e-05,2]
[420931650,1776737432562,-300.0,9.805e-05,2]
[420931651,1776737432572,-2087.81409609,0.0001,2]
[420931652,1776737432582,-500.0,0.0001,2]
[420931653,1776737432591,-500.0,0.0001,2]
[420931654,1776737432601,-500.0,0.0001,2]
[420931655,1776737432611,-500.0,0.0001,2]
[420931656,1776737432620,-500.0,0.0001,2]
[420931657,1776737432630,-500.0,0.0001,2]
[420931658,1776737432639,-500.0,0.0001,2]
[420931659,1776737432648,-500.0,0.0001,2]
[420931660,1776737432658,-500.0,0.0001,2]
[420931661,1776737432667,-238.43487039,0.000101,2]
[420931662,1776737432676,-500.0,0.00010304,2]
[420931663,1776737432685,-300.0,0.00010568,2]
[420931664,1776737432695,-4784.99482182,0.00010568,2]
[420931665,1776737432704,-566.0909985,0.00010673,2]
[420931666,1776737432714,-502.61244998,0.00010673,2]
[420931667,1776737432724,-500.0,0.00010693,2]
[420931668,1776737432734,-500.0,0.00010693,2]
[420931669,1776737432744,-500.0,0.00010693,2]
[420931670,1776737432753,-500.0,0.00010693,2]
[420931671,1776737432763,-500.0,0.00010693,2]
[420931672,1776737432772,-500.0,0.00010693,2]
[420931673,1776737432781,-165.52394141,0.00010693,2]
[420931674,1776737432791,-500.0,0.00010693,2]
[420931675,1776737432801,-500.0,0.00010693,2]
[420931676,1776737432810,-500.0,0.00010693,2]
[420931677,1776737432820,-500.0,0.00010693,2]
[420931678,1776737432831,-500.0,0.00010693,2]
[420931679,1776737432840,-500.0,0.00010693,2]
[420931680,1776737432850,-500.0,0.00010693,2]
[420931681,1776737432859,-500.0,0.00010693,2]
[420931682,1776737432868,-500.0,0.00010693,2]
[420931683,1776737432878,-500.0,0.00010693,2]
[420931684,1776737432887,-500.0,0.00010693,2]
[420931685,1776737432897,-500.0,0.00010693,2]
[420931686,1776737432907,-500.0,0.00010693,2]
[420931687,1776737432916,-500.0,0.00010693,2]
[420931688,1776737432926,-500.0,0.00010693,2]
[420931689,1776737432936,-451.31369625,0.00010693,2]
[420931690,1776737432946,-500.0,0.00010693,2]
[420931691,1776737432956,-500.0,0.00010693,2]
[420931692,1776737432965,-500.0,0.00010693,2]
[420931693,1776737432975,-500.0,0.00010693,2]
[420931694,1776737432985,-500.0,0.00010693,2]
[420931695,1776737432995,-500.0,0.00010693,2]
[420931696,1776737433004,-500.0,0.00010693,2]
[420931697,1776737433013,-320.22299895,0.00010693,2]
[420931698,1776737433023,-500.0,0.00010693,2]
[420931699,1776737433033,-500.0,0.00010693,2]
[420931700,1776737433042,-500.0,0.00010693,2]
[420931701,1776737433052,-500.0,0.00010693,2]
[420931702,1776737433062,-500.0,0.00010693,2]
[420931703,1776737433071,-500.0,0.00010693,2]
[420931704,1776737433081,-500.0,0.00010693,2]
[420931705,1776737433091,-500.0,0.00010693,2]
[420931706,1776737433100,-500.0,0.00010693,2]
[420931707,1776737433110,-500.0,0.00010693,2]
[420931708,1776737433120,-500.0,0.00010693,2]
[420931709,1776737433129,-500.0,0.00010693,2]
[420931710,1776737433139,-500.0,0.00010693,2]
[420931711,1776737433148,-500.0,0.00010693,2]
[420931712,1776737433158,-500.0,0.00010693,2]
[420931713,1776737433168,-500.0,0.00010693,2]
[420931714,1776737433177,-500.0,0.00010693,2]
[420931715,1776737433187,-310.00740024,0.00010693,2]
[420931716,1776737433196,-500.0,0.00010693,2]
[420931717,1776737433206,-500.0,0.00010693,2]
[420931718,1776737433215,-500.0,0.00010693,2]
[420931719,1776737433225,-500.0,0.00010693,2]
[420931720,1776737433234,-500.0,0.00010693,2]
[420931721,1776737433244,-500.0,0.00010693,2]
[420931722,1776737433254,-500.0,0.00010693,2]
[420931723,1776737433264,-500.0,0.00010693,2]
[420931724,1776737433273,-500.0,0.00010693,2]
[420931725,1776737433283,-500.0,0.00010693,2]
[420931726,1776737433293,-500.0,0.00010693,2]
[420931727,1776737433303,-500.0,0.00010693,2]
[420931728,1776737433313,-500.0,0.00010693,2]
[420931729,1776737433323,-500.0,0.00010693,2]
[420931730,1776737433333,-600.0,0.00010693,2]
[420931731,1776737433343,-500.0,0.00010693,2]
[420931732,1776737433352,-500.0,0.00010693,2]
[420931733,1776737433362,-500.0,0.00010693,2]
[420931734,1776737433373,-500.0,0.00010693,2]
[420931735,1776737433383,-500.0,0.00010693,2]
[420931736,1776737433393,-500.0,0.00010693,2]
[420931737,1776737433402,-500.0,0.00010693,2]
[420931738,1776737433412,-500.0,0.00010693,2]
[420931739,1776737433422,-500.0,0.00010693,2]
[420931740,1776737433431,-500.0,0.00010693,2]
[420931741,1776737433441,-500.0,0.00010693,2]
[420931742,1776737433450,-500.0,0.00010693,2]
[420931743,1776737433462,-500.0,0.00010693,2]
[420931744,1776737433471,-500.0,0.00010693,2]
[420931745,1776737433480,-500.0,0.00010693,2]
[420931746,1776737433490,-500.0,0.00010693,2]
[420931747,1776737433499,-500.0,0.00010693,2]
[420931748,1776737433509,-500.0,0.00010693,2]
[420931749,1776737433519,-500.0,0.00010693,2]
[420931750,1776737433528,-500.0,0.00010693,2]
[420931751,1776737433537,-464.2236195,0.00010693,2]
[420931752,1776737433574,-35.7763805,0.00010693,2]
[420931753,1776737433583,-500.0,0.00010694,2]
[420931754,1776737433593,-102.56415676,0.00010694,2]
[420931762,1776737438031,-500.0,0.00010693,2]
[420931763,1776737438042,-397.43584324,0.00010694,2]
[420931764,1776737438052,-151.0,0.00010694,2]
[420931766,1776737438062,-500.0,0.00010694,2]
[420931768,1776737438072,-151.0,0.00010694,2]
[420931769,1776737438081,-151.0,0.00010694,2]
[420931770,1776737438091,-500.0,0.00010694,2]
[420931771,1776737438100,-151.0,0.00010694,2]
[420931772,1776737438110,-500.0,0.00010694,2]
[420931773,1776737438119,-151.0,0.00010694,2]
[420931774,1776737438128,-500.0,0.00010694,2]
[420931775,1776737438137,-151.0,0.00010694,2]
[420931776,1776737438146,-500.0,0.00010694,2]
[420931777,1776737438156,-151.0,0.00010694,2]
[420931778,1776737438165,-500.0,0.00010694,2]
[420931779,1776737438174,-500.0,0.00010694,2]
[420931780,1776737438184,-151.0,0.00010694,2]
[420931781,1776737438193,-500.0,0.00010694,2]
[420931782,1776737438202,-151.0,0.00010694,2]
[420931783,1776737438212,-151.0,0.00010694,2]
[420931784,1776737438220,-151.0,0.00010694,2]
[420931785,1776737438230,-500.0,0.00010694,2]
[420931786,1776737438239,-500.0,0.00010699,2]
[420931787,1776737438249,-550.43942656,0.00010699,2]
[420931788,1776737438258,-500.0,0.00010699,2]
[420931789,1776737438267,-216.78125246,0.00010699,2]
[420931790,1776737438276,-500.0,0.00010699,2]
[420931791,1776737438286,-562.59543231,0.00010699,2]
[420931792,1776737438295,-500.0,0.00010699,2]
[420931793,1776737438304,-500.0,0.00010699,2]
[420931794,1776737438314,-500.0,0.00010699,2]
[420931795,1776737438323,-500.0,0.00010699,2]
[420931796,1776737438332,-500.0,0.00010699,2]
[420931797,1776737438341,-500.0,0.00010699,2]
[420931798,1776737438350,-200.0,0.00010699,2]
[420931799,1776737438360,-168.86653799,0.00010699,2]
[420931800,1776737438369,-62630.50922351,0.000107,2]
[420931801,1776737438380,-48993.48432967,0.000107,2]
[420931802,1776737438391,-1826.1386616,0.000107,2]
[420931803,1776737438435,-538.65281318,0.000107,2]
[420931804,1776737438460,-597.34621392,0.000107,2]
[420931805,1776737438471,-1607.2909903,0.000107,2]
[420931806,1776737438490,-22637.82891913,0.000107,2]
[420931807,1776737438513,-7301.41972174,0.000107,2]
[420931808,1776737438524,-6095.94453654,0.000107,2]
[420931809,1776737438535,-1109.46875634,0.000107,2]
[420931810,1776737438564,-35982.11776348,0.000107,2]
[420931811,1776737438575,-1230.92066509,0.000107,2]
[420931812,1776737438586,-713.12020806,0.000107,2]
[420931814,1776737440987,-47546.02743386,0.000107,2]
[420931815,1776737440998,-1570.02307675,0.000107,2]
[420931821,1776737443031,-1000.0,9.608e-05,2]
[420931822,1776737443040,-5193.42926535,0.000107,2]
[420931823,1776737443079,-6064.61246381,0.000107,2]
[420931824,1776737443093,-722.8955016,0.000107,2]
[420931825,1776737443105,-13732.9411725,0.000107,2]
[420931826,1776737443120,-841.047141,0.000107,2]
[420931827,1776737443183,-97624.29820934,0.000107,2]
[420931828,1776737443207,-1339.51794119,0.000107,2]
[420931829,1776737443338,-375.18789012,0.000107,2]
[420931875,1776737611657,1000.0,0.000107,30]
[420931877,1776737628889,1000.0,0.000108,30]
[420931878,1776737647615,1000.0,0.000109,30]
[420931883,1776738035690,-1000.0,0.000168,120]
[420931884,1776738035712,-1513.26,0.000168,120]
[420931885,1776738035734,-1000.0,0.000169,120]
[420931901,1776738174540,185.28574,0.000165,30]
[420931933,1776738632238,-252.0,9.423e-05,2]
[420931934,1776738632248,-1852.42,9.424e-05,2]
[420931935,1776738632257,-2375.91,9.48e-05,2]
[420931936,1776738632267,-854.29878844,9.607e-05,2]
[420931937,1776738632276,-167.61,9.608e-05,2]
[420931938,1776738632285,-1981.65,9.665e-05,2]
[420931939,1776738632295,-160.64,9.778e-05,2]
[420931940,1776738632304,-1200.0,9.856e-05,2]
[420931941,1776738632313,-1351.79,9.857e-05,2]
[420931942,1776738632323,-260.0,9.863e-05,2]
[420931943,1776738632332,-300.0,9.883e-05,2]
[420931944,1776738632342,-300.0,9.883e-05,2]
[420931945,1776738632351,-150.0,9.883e-05,2]
[420931946,1776738632360,-500.0,9.884e-05,2]
[420931947,1776738632369,-200.0,9.911e-05,2]
[420931948,1776738632379,-1102.0,9.959e-05,2]
[420931949,1776738632388,-2000.0,9.961e-05,2]
[420931950,1776738632397,-150.0,0.00010085,2]
[420931951,1776738632408,-214.19,0.00010163,2]
[420931952,1776738632417,-1015.01589578,0.00010359,2]
[420931953,1776738632426,-150.0,0.00010375,2]
[420931954,1776738632436,-152.01,0.00010401,2]
[420931955,1776738632445,-2500.0,0.000105,2]
[420931956,1776738632454,-428.39,0.00010547,2]
[420931957,1776738632463,-303.78,0.00010547,2]
[420931958,1776738632472,-167.61,0.00010568,2]
[420931959,1776738632482,-150.0,0.00010593,2]
[420931960,1776738632491,-151.0,0.00010594,2]
[420931961,1776738632500,-500.0,0.00010594,2]
[420931962,1776738632509,-151.0,0.00010594,2]
[420931963,1776738632520,-500.0,0.00010594,2]
[420931964,1776738632530,-151.0,0.00010594,2]
[420931965,1776738632539,-500.0,0.00010594,2]
[420931966,1776738632548,-151.0,0.00010594,2]
[420931967,1776738632557,-500.0,0.00010594,2]
[420931968,1776738632566,-151.0,0.00010594,2]
[420931969,1776738632575,-500.0,0.00010594,2]
[420931970,1776738632585,-151.0,0.00010594,2]
[420931971,1776738632594,-500.0,0.00010594,2]
[420931972,1776738632604,-151.0,0.00010594,2]
[420931973,1776738632614,-500.0,0.00010594,2]
[420931974,1776738632623,-151.0,0.00010594,2]
[420931975,1776738632632,-500.0,0.00010594,2]
[420931976,1776738632642,-151.0,0.00010594,2]
[420931977,1776738632651,-500.0,0.00010594,2]
[420931978,1776738632661,-151.0,0.00010594,2]
[420931979,1776738632671,-500.0,0.00010594,2]
[420931980,1776738632680,-151.0,0.00010594,2]
[420931981,1776738632690,-500.0,0.00010594,2]
[420931982,1776738632699,-331.07994869,0.00010599,2]
[420931983,1776738632709,-977.155,0.00010599,2]
[420931985,1776738632718,-17.12361837,0.00010599,2]
[420931989,1776738632753,-155.86138163,0.00010599,2]
[420931990,1776738632763,-200.0,0.00010599,2]
[420931991,1776738632772,-221900.66843409,0.000106,2]
[420931994,1776738638352,-75887.62771607,0.000106,2]
[420931995,1776738638364,-48993.48432967,0.000106,2]
[420931996,1776738638375,-1826.1386616,0.000106,2]
[420931997,1776738638632,-768012.87620128,0.000106,2]
[420932201,1776738640823,-497.813004,0.000106,2]
[420932800,1776738646951,-414.27799472,0.000106,2]
[420932804,1776738646973,-3637.97003752,0.000106,2]
[420933140,1776738984298,7894.80939339,0.0001672,120]
[420933150,1776739832317,-150.0,9.209e-05,2]
[420933151,1776739832327,-181.3424,9.323e-05,2]
[420933152,1776739832335,-72.95973,9.398e-05,2]
[420933153,1776739832347,-77.04027,9.398e-05,2]
[420933154,1776739832356,-596.86684308,9.539e-05,2]
[420933155,1776739832452,-1403.13315692,9.539e-05,2]
[420933156,1776739832461,-42.02642116,9.589e-05,2]
[420933157,1776739832477,-108.18357884,9.589e-05,2]
[420933158,1776739832486,-4972.639356,9.638e-05,2]
[420933159,1776739832496,-300.0,9.667e-05,2]
[420933160,1776739832506,-1200.0,9.667e-05,2]
[420933161,1776739832515,-5784.39,9.668e-05,2]
[420933162,1776739832524,-300.0,9.685e-05,2]
[420933163,1776739832533,-1529.03,9.686e-05,2]
[420933164,1776739832543,-150.0,9.724e-05,2]
[420933165,1776739832553,-175.93,9.773e-05,2]
[420933166,1776739832563,-260.0,9.863e-05,2]
[420933167,1776739832572,-301.92342521,0.0001013,2]
[420933168,1776739832582,-338.5318373,0.0001013,2]
[420933169,1776739832592,-611.81980635,0.00010455,2]
[420933170,1776739832602,-500.0,0.00010496,2]
[420933171,1776739832614,-507.47291306,0.00010496,2]
[420933172,1776739832624,-500.0,0.00010496,2]
[420933173,1776739832634,-500.0,0.00010496,2]
[420933174,1776739832643,-421.56509115,0.00010496,2]
[420933175,1776739832652,-209.89761552,0.00010496,2]
[420933176,1776739832662,-500.0,0.00010496,2]
[420933177,1776739832671,-500.0,0.00010496,2]
[420933178,1776739832680,-500.0,0.00010496,2]
[420933179,1776739832689,-500.0,0.00010496,2]
[420933180,1776739832699,-500.0,0.00010496,2]
[420933181,1776739832708,-150.0,0.00010496,2]
[420933182,1776739832718,-243719.3379616,0.00010497,2]
[420933183,1776739832730,-311.28986563,0.00010497,2]
[420933187,1776739837617,-408.7048337,0.00010497,2]
[420933188,1776739837828,-75887.62771607,0.00010497,2]
[420933189,1776739837839,-27804.517023,0.00010497,2]
[420933190,1776739837849,-1000.0,0.000105,2]
[420933191,1776739837859,-336.81,0.00010547,2]
[420933192,1776739837869,-167.45,0.00010547,2]
[420933193,1776739837879,-248.0,0.0001059,2]
[420933194,1776739837888,-161.0,0.0001059,2]
[420933195,1776739837898,-200.0,0.00010591,2]
[420933196,1776739837907,-151.0,0.00010591,2]
[420933197,1776739837917,-151.0,0.00010591,2]
[420933198,1776739837926,-151.0,0.00010591,2]
[420933199,1776739837936,-151.0,0.00010591,2]
[420933200,1776739837946,-151.0,0.00010591,2]
[420933201,1776739837955,-151.0,0.00010591,2]
[420933202,1776739837964,-151.0,0.00010591,2]
[420933203,1776739837974,-151.0,0.00010591,2]
[420933204,1776739837983,-151.0,0.00010591,2]
[420933205,1776739837993,-151.0,0.00010591,2]
[420933206,1776739838002,-151.0,0.00010591,2]
[420933207,1776739838012,-500.0,0.00010591,2]
[420933208,1776739838022,-500.0,0.00010591,2]
[420933209,1776739838032,-500.0,0.00010591,2]
[420933210,1776739838042,-500.0,0.00010591,2]
[420933211,1776739838051,-261.43891727,0.00010591,2]
[420933212,1776739838061,-15153.2683894,0.00010597,2]
[420933213,1776739838074,-1826.1386616,0.00010597,2]
[420933214,1776739838090,-436.83506,0.00010597,2]
[420933215,1776739838110,-32871.8313258,0.00010597,2]
[420933216,1776739838120,-294.739,0.00010599,2]
[420933217,1776739838130,-225.54733595,0.000106,2]
[420933218,1776739838140,-391.71281181,0.000106,2]
[420933219,1776739838149,-350.02820475,0.000106,2]
[420933220,1776739838159,-376.99453265,0.000106,2]
[420933221,1776739838168,-350.34932157,0.000106,2]
[420933222,1776739838178,-150.0,0.000106,2]
[420933223,1776739838188,-2500.0,0.000106,2]
[420933224,1776739838197,-500.0,0.00010603,2]
[420933225,1776739838207,-1680.0,0.00010633,2]
[420933227,1776739838216,-420.0,0.00010654,2]
[420933229,1776739838226,-202.75326216,0.0001066,2]
[420933231,1776739838236,-362.77653434,0.0001066,2]
[420933233,1776739838245,-161.0,0.0001069,2]
[420933235,1776739838255,-187.33661248,0.0001069,2]
[420933237,1776739838264,-348.48308425,0.00010693,2]
[420933239,1776739838274,-200.0,0.00010699,2]
[420933241,1776739838283,-90969.25136481,0.000107,2]
[420933303,1776739839995,-3532.20722519,0.000107,2]
[420933304,1776739840103,-529.123,0.000107,2]
[420933315,1776739843415,-1092.73532118,0.000107,2]
[420933316,1776739843426,-37825.0,0.000107,2]
[420933317,1776739843441,-756.0,0.000107,2]
[420933384,1776741032685,-300.0,9.562e-05,2]
[420933385,1776741032695,-1200.0,9.562e-05,2]
[420933386,1776741032704,-270.0,9.563e-05,2]
[420933387,1776741032716,-959.73744335,9.563e-05,2]
[420933388,1776741032727,-270.37737651,9.563e-05,2]
[420933389,1776741032738,-529.59379824,9.563e-05,2]
[420933390,1776741032753,-9663.2613819,9.563e-05,2]
[420933391,1776741032762,-2000.0,9.611e-05,2]
[420933392,1776741032771,-150.0,9.651e-05,2]
[420933393,1776741032780,-70347.17833973,9.652e-05,2]
[420933398,1776741037962,-11637.51116027,9.652e-05,2]
[420933399,1776741037972,-1600.0,9.665e-05,2]
[420933400,1776741037982,-500.0,9.671e-05,2]
[420933401,1776741037991,-168.08,9.703e-05,2]
[420933402,1776741038001,-61982.0365558,9.752e-05,2]
[420933403,1776741038013,-48993.48432967,9.752e-05,2]
[420933404,1776741038024,-1826.1386616,9.752e-05,2]
[420933443,1776741039934,-366.40683651,9.752e-05,2]
[420933444,1776741040351,-337.05962658,9.752e-05,2]
[420933445,1776741040404,-3093.41928878,9.752e-05,2]
[420933446,1776741040416,-336.38902237,9.752e-05,2]
[420933447,1776741040427,-14845.57567869,9.752e-05,2]
[420933448,1776741040436,-349.32303473,9.757e-05,2]
[420933449,1776741040459,-150.67696527,9.757e-05,2]
[420933450,1776741040468,-169.69,9.784e-05,2]
[420933451,1776741040477,-1110.5045704,9.787e-05,2]
[420933452,1776741040565,-389.4954296,9.787e-05,2]
[420933453,1776741040576,-1265.53160878,9.801e-05,2]
[420933497,1776741043926,-1085.74839122,9.801e-05,2]
[420933498,1776741043935,-1219.59,9.835e-05,2]
[420933499,1776741043945,-260.0,9.863e-05,2]
[420933500,1776741043954,-200.0,9.864e-05,2]
[420933501,1776741043963,-948.52915237,0.00010397,2]
[420933502,1776741046057,-6532.29549651,0.00010397,2]
[420933503,1776741046157,-938.78645993,0.00010397,2]
[420933504,1776741046212,-2580.74309119,0.00010397,2]
[420933505,1776741046222,-171.037,0.00010486,2]
[420933506,1776741046232,-1166.71,0.00010486,2]
[420933507,1776741046243,-420.0,0.00010518,2]
[420933508,1776741046254,-1680.0,0.00010518,2]
[420933509,1776741046265,-190.16290225,0.00010518,2]
[420933510,1776741046275,-1000.0,0.000106,2]
[420933511,1776741046285,-6155.95489445,0.000106,2]
[420933512,1776741046295,-300.29941848,0.000106,2]
[420933513,1776741046305,-266.92029839,0.000106,2]
[420933514,1776741046315,-458.5934541,0.000106,2]
[420933515,1776741046325,-500.28618858,0.000106,2]
[420933517,1776741046334,-523.7980412,0.000106,2]
[420933518,1776741046343,-451.97552387,0.000106,2]
[420933519,1776741046353,-1061.01258401,0.000106,2]
[420933520,1776741046362,-934.63987736,0.000106,2]
[420933521,1776741046373,-1033.56232905,0.000106,2]
[420933522,1776741046382,-490.4077,0.000106,2]
[420933523,1776741046391,-255.0,0.00010616,2]
[420933524,1776741046401,-7981.2700371,0.00010646,2]
[420933525,1776741046410,-12229.0844749,0.00010646,2]
[420933526,1776741046419,-3126.1588934,0.00010646,2]
[420933527,1776741046428,-13338.9718284,0.00010646,2]
[420933528,1776741046438,-10781.9120697,0.00010646,2]
[420933529,1776741046448,-259.4447137,0.00010646,2]
[420933530,1776741046457,-336.18,0.00010647,2]
[420933531,1776741046467,-161.0,0.0001069,2]
[420933532,1776741046476,-161.0,0.0001069,2]
[420933533,1776741046485,-249.0,0.0001069,2]
[420933534,1776741046495,-187.33661248,0.0001069,2]
[420933535,1776741046509,-200.0,0.00010694,2]
[420933536,1776741046519,-151.0,0.00010694,2]
[420933537,1776741046529,-151.0,0.00010694,2]
[420933538,1776741046539,-151.0,0.00010694,2]
[420933540,1776741046549,-151.0,0.00010694,2]
[420933542,1776741046558,-151.0,0.00010694,2]
[420933543,1776741046568,-151.0,0.00010694,2]
[420933544,1776741046578,-151.0,0.00010694,2]
[420933545,1776741046587,-151.0,0.00010694,2]
[420933547,1776741046597,-151.0,0.00010694,2]
[420933548,1776741046606,-151.0,0.00010694,2]
[420933549,1776741046616,-151.0,0.00010694,2]
[420933550,1776741046626,-500.0,0.00010694,2]
[420933551,1776741046636,-500.0,0.00010694,2]
[420933552,1776741046646,-500.0,0.00010694,2]
[420933553,1776741046655,-500.0,0.00010694,2]
[420933554,1776741046664,-607.85378246,0.00010694,2]
[420933555,1776741046674,-510.98825564,0.00010694,2]
[420933556,1776741046684,-1298.06387714,0.00010694,2]
[420933557,1776741046693,-153.88145361,0.00010694,2]
[420933558,1776741046703,-200.0,0.00010699,2]
[420933559,1776741046713,-34526.35835939,0.000107,2]
[420933560,1776741046764,-2119.98767991,0.000107,2]
[420933578,1776742231925,-253.46543089,9.451e-05,2]
[420933579,1776742231938,-46.53456911,9.451e-05,2]
[420933580,1776742231947,-764.9701451,9.451e-05,2]
[420933581,1776742231978,-435.0298549,9.451e-05,2]
[420933582,1776742231988,-272.0,9.451e-05,2]
[420933583,1776742231997,-11637.5112,9.452e-05,2]
[420933584,1776742232007,-168.08,9.504e-05,2]
[420933585,1776742232016,-150.0,9.55e-05,2]
[420933586,1776742232026,-1000.0,9.652e-05,2]
[420933587,1776742232036,-1852.42,9.78e-05,2]
[420933588,1776742232045,-260.0,9.863e-05,2]
[420933589,1776742232054,-6041.22036128,9.891e-05,2]
[420933590,1776742232070,-4563.85381215,9.891e-05,2]
[420933591,1776742232081,-851.12712388,9.891e-05,2]
[420933592,1776742232148,-2220.97870269,9.891e-05,2]
[420933593,1776742232159,-1187.95,9.916e-05,2]
[420933594,1776742232169,-118.62688204,9.959e-05,2]
[420933595,1776742232181,-48.03311796,9.959e-05,2]
[420933596,1776742232191,-207.0,9.989e-05,2]
[420933597,1776742232200,-207.0,9.989e-05,2]
[420933598,1776742232210,-207.0,9.989e-05,2]
[420933599,1776742232220,-207.0,9.989e-05,2]
[420933600,1776742232229,-207.0,9.989e-05,2]
[420933601,1776742232239,-207.0,9.989e-05,2]
[420933602,1776742232249,-207.0,9.989e-05,2]
[420933603,1776742232259,-207.0,9.989e-05,2]
[420933604,1776742232269,-207.0,9.989e-05,2]
[420933605,1776742232279,-322.0,0.0001011,2]
[420933606,1776742232288,-578.20924308,0.00010164,2]
[420933607,1776742232298,-350.0,0.00010209,2]
[420933608,1776742232308,-166.66,0.00010288,2]
[420933609,1776742232317,-420.0,0.00010396,2]
[420933610,1776742232333,-1680.0,0.00010396,2]
[420933611,1776742232343,-255.0,0.00010505,2]
[420933612,1776742232980,-197.09763896,0.000106,2]
[420933613,1776742232993,-60.30186262,0.000106,2]
[420933614,1776742233002,-1239.69813738,0.000106,3]
[420933615,1776742233014,-3250.0,0.000106,3]
[420933622,1776742238128,-1030.30186262,0.000106,3]
[420933623,1776742238138,-166.66,0.00010617,2]
[420933624,1776742238148,-700.38626424,0.00010659,2]
[420933625,1776742238160,-557.49671702,0.00010659,2]
[420933626,1776742238172,-2027.98034925,0.00010659,2]
[420933627,1776742238185,-1047.29660869,0.00010659,2]
[420933628,1776742238194,-506.22339131,0.00010659,2]
[420933629,1776742238237,-535.41792625,0.00010659,2]
[420933630,1776742238295,-2426.14308584,0.00010659,2]
[420933631,1776742238305,-500.0,0.00010673,2]
[420933632,1776742238314,-168.02017336,0.00010673,2]
[420933633,1776742238324,-161.0,0.0001069,2]
[420933634,1776742238334,-161.0,0.0001069,2]
[420933635,1776742238343,-160.0,0.0001069,2]
[420933636,1776742238353,-151.0,0.00010694,2]
[420933637,1776742238362,-151.0,0.00010694,2]
[420933638,1776742238372,-721.12765535,0.00010694,2]
[420933639,1776742238381,-151.0,0.00010694,2]
[420933640,1776742238391,-151.0,0.00010694,2]
[420933641,1776742238401,-151.0,0.00010694,2]
[420933642,1776742238411,-151.0,0.00010694,2]
[420933643,1776742238420,-151.0,0.00010694,2]
[420933644,1776742238430,-164.82986423,0.00010694,2]
[420933645,1776742238439,-1000.0,0.00010694,2]
[420933646,1776742238449,-1000.0,0.00010694,2]
[420933647,1776742238459,-1000.0,0.00010694,2]
[420933648,1776742238468,-1000.0,0.00010694,2]
[420933649,1776742238478,-706.78379292,0.00010694,2]
[420933650,1776742238488,-623.0,0.000107,5]
[420933651,1776742238498,-782.0,0.000107,5]
[420933652,1776742238507,-64256.72314437,0.000107,2]
[420933653,1776742238519,-48993.48432967,0.000107,2]
[420933654,1776742238530,-1826.1386616,0.000107,2]
[420933655,1776742238542,-471.87366345,0.000107,2]
[420933656,1776742238559,-6491.07,0.000107,2]
[420933657,1776742238570,-3544.04180875,0.000107,2]
[420933658,1776742238582,-1076.55582393,0.000107,2]